Cogmind - Beta 10.2 @@@ ROGUE MODE // 2020.12.03 @ 16:31:11 Player: Virvatuli Result: Destroyed by G-34 Mercenary with Small Laser Performance ------------- Evolutions (0) 0 Regions Visited (4) 800 Robots Destroyed (17) 85 Value Destroyed (353) 353 Prototype IDs (0) 0 Alien Tech Used (0) 0 Bonus (0) 0 TOTAL SCORE: 1238 Bonus ------- None Cogmind --------- Core Integrity 0/250 Matter 300/300 Energy 250/250 System Corruption 1% Temperature Cool (6) Movement Rolling (100) Location -9/Mines Parts ------- > --- POWER (1) -------- Ion Engine > --- PROPULSION (2) --- Compact Wheel Compact Wheel > --- UTILITY (2) ------ Heat Sink Heat Sink > --- WEAPON (2) ------- Small Laser Particle Cannon > --- INVENTORY (4) ---- High-capacity Battery (400) Medium Matter Pod (100) Peak State ------------ > --- POWER ------------ Light Ion Engine > --- PROPULSION ------- Compact Wheel Compact Wheel > --- UTILITY ---------- Medium Matter Pod Visual Processing Unit > --- WEAPON ----------- Small Laser Light Assault Rifle > --- INVENTORY -------- Light Armor Plating [Rating: 8] Favorites ----------- Power Light Ion Engine Engine Light Ion Engine Propulsion Compact Wheel Leg Aluminum Leg Wheel Compact Wheel Flight Unit Flight Unit Utility Medium Matter Pod Device Heat Sink Storage Medium Matter Pod Processor Visual Processing Unit Protection Light Armor Plating Weapon Small Laser Energy Gun Small Laser Energy Cannon Beam Cannon Ballistic Gun Light Assault Rifle Launcher Grenade Launcher Special Weapon Welding Torch Build | -11 -10 -10 -10 -9 ------- Run | Scr Mat Min Exi Min Slots Evolved . | . . . . . Power . | . . . . . Propulsion . | . . . . . Utility . | . . . . . Weapon . | . . . . . Parts Attached 36 | 8 20 1 1 6 Power 4 | 1 1 . 1 1 Engine 4 | 1 1 . 1 1 Core . | . . . . . Reactor . | . . . . . Propulsion 10 | 4 6 . . . Treads . | . . . . . Leg 4 | 2 2 . . . Wheel 4 | 2 2 . . . Hover . | . . . . . Flight 2 | . 2 . . . Utility 8 | . 6 . . 2 Device 2 | . . . . 2 Storage 1 | . 1 . . . Processor 1 | . 1 . . . Hackware . | . . . . . Protection 4 | . 4 . . . Artifact . | . . . . . Weapon 14 | 3 7 1 . 3 Energy Gun 7 | 2 2 1 . 2 Energy Cannon 2 | . 1 . . 1 Ballistic Gun 3 | 1 2 . . . Ballistic Cannon . | . . . . . Launcher 1 | . 1 . . . Special Weapon 1 | . 1 . . . Impact Weapon . | . . . . . Slashing Weapon . | . . . . . Piercing Weapon . | . . . . . Special Melee Weapon . | . . . . . Unidentified Prototypes . | . . . . . Parts Lost 3 | . 3 . . . Power 1 | . 1 . . . Propulsion . | . . . . . Utility . | . . . . . Weapon 2 | . 2 . . . Highest Loss Streak 1 | . 1 . . . Average Slot Usage (%) 93 | . 86 99 100 99 Engine 13 | . 13 14 14 14 Leg 7 | . 16 . . . Wheel 20 | . 10 28 28 28 Device 3 | . . . . 22 Storage 7 | . 4 14 14 2 Processor 6 | . 1 14 14 2 Protection 9 | . 21 . . . Energy Gun 14 | . 2 21 28 25 Energy Cannon 1 | . 3 . . 2 Ballistic Gun 4 | . 7 6 . . Special Weapon 1 | . 2 . . . Naked Turns . | . . . . . Heaviest Build 14 | 7 14 7 7 12 Greatest Support 32 | 20 32 32 32 32 Greatest Overweight (x) 2 | . 2 . . . Average Overweight (x) . | . . . . . Largest Inventory Capacity 4 | 4 4 4 4 4 Average Capacity 4 | 4 4 4 4 4 Most Carried 4 | 4 3 1 2 4 Average Carried . | 1 . . . 1 Final Capacity 4 | 4 4 4 4 4 Final Carried 2 | . . . 1 2 Class Distribution -------------------- 87% | Mutant 12% | Scavenger-Mutant Dominant Class ---------------- Mutant | -10/Materials Mutant | -10/Mines Mutant | -10/Exiles Scavenger-Mutant | -9/Mines Resources | -11 -10 -10 -10 -9 ----------- Run | Scr Mat Min Exi Min Matter Collected 690 | 280 323 17 . 70 Remotely . | . . . . . Salvage Created 434 | 30 203 37 . 164 Parts 38 | 1 24 . . 13 Haulers Intercepted . | . . . . . Recyclers Shooed 1 | . 1 . . . Parts Field Recycled . | . . . . . Retrieved Matter . | . . . . . Parts Self-Destructed . | . . . . . Prevented . | . . . . . Kills | -11 -10 -10 -10 -9 ------- Run | Scr Mat Min Exi Min Combat Hostiles Destroyed 15 | 1 7 2 . 5 Melee 1 | . 1 . . . Guns 11 | 1 3 2 . 5 Cannons 1 | . 1 . . . AOE 2 | . 2 . . . Classes Destroyed 6 | 1 4 1 . . Builder 1 | . 1 . . . Operator 1 | . 1 . . . Watcher 2 | . 2 . . . Swarmer 7 | . 5 . . 2 Grunt 6 | 1 2 . . 3 Assembled 2 | . . 2 . . Best Kill Streak 3 | 1 3 1 . 3 Combat Bots Only 3 | 1 2 1 . 3 Max Kills in Single Turn 1 | 1 1 1 . 1 Gunslinging . | . . . . . Exploded 1 | . 1 . . . Melee 1 | . 1 . . . Uniques/NPCs Destroyed . | . . . . . Combat | -11 -10 -10 -10 -9 -------- Run | Scr Mat Min Exi Min Damage Taken 916 | 46 608 56 . 206 Core 258 | . 140 11 . 107 Absorbed by Shields . | . . . . . Core Remaining (%) 100 | 100 . . . . Volleys Fired 83 | 4 53 7 1 18 Largest 2 | 2 2 2 2 2 Hottest 108 | 100 100 60 80 108 Shots Fired 124 | 8 64 14 2 36 Gun 93 | 8 39 14 2 30 Cannon 26 | . 20 . . 6 Launcher 5 | . 5 . . . Special . | . . . . . Kinetic 40 | . 33 7 . . Thermal 73 | 8 20 7 2 36 Explosive 5 | . 5 . . . Electromagnetic 6 | . 6 . . . Robot Hit Streak 9 | 3 6 2 . 9 Robot Miss Streak 4 | 3 4 4 . 2 Penetration Max . | . . . . . Secondary Targets 1 | . . . . 1 Max Gunslinging Chain 1 | . . . . 1 Shots Hit Robots 56 | 4 30 4 . 18 Core Hits 38 | 2 24 3 . 9 Critical Hits . | . . . . . Critical Kills . | . . . . . Critical Parts Destroyed . | . . . . . Melee Attacks . | . . . . . Impact . | . . . . . Slashing . | . . . . . Piercing . | . . . . . Sneak Attacks . | . . . . . Combat Hostiles . | . . . . . Follow-up Attacks . | . . . . . Damage Inflicted 847 | 49 545 34 . 219 Guns 533 | 49 252 34 . 198 Cannons 108 | . 87 . . 21 Explosions 183 | . 183 . . . Melee . | . . . . . Ramming 23 | . 23 . . . Kinetic 181 | . 181 . . . Thermal 389 | 49 87 34 . 219 Explosive 183 | . 183 . . . Electromagnetic 71 | . 71 . . . Impact . | . . . . . Slashing . | . . . . . Piercing . | . . . . . Highest Corruption 1 | . 1 1 1 1 Average Corruption 1 | . 1 1 1 1 Corruption Purged . | . . . . . Effects 7 | . 4 1 2 . Message Errors 3 | . 1 1 1 . Energy Discharges 1 | . 1 . . . Data Loss (minor) 2 | . 1 . 1 . Targeting Errors 1 | . 1 . . . Overload Shots . | . . . . . Overflow Damage . | . . . . . Projectiles . | . . . . . Explosions . | . . . . . Melee . | . . . . . Knockbacks . | . . . . . Impact . | . . . . . Kinetic . | . . . . . Secondary . | . . . . . Self-Inflicted Damage 33 | . 33 . . . Shots 1 | . 1 . . . Rammed 7 | . 7 . . . Targets Rammed 8 | . 8 . . . Kicked 1 | . 1 . . . Crushed . | . . . . . Highest Temperature 344 | 180 344 60 18 175 Average Temperature 95 | 95 114 30 12 72 Received Heat Transfer 226 | 24 75 40 . 87 Effects 1 | . 1 . . . Shutdowns 1 | . 1 . . . Siege Activations . | . . . . . Robots Corrupted . | . . . . . Combat Hostiles . | . . . . . Parts Fried 1 | . 1 . . . Impact Corruptions . | . . . . . Robots Melted . | . . . . . Combat Hostiles . | . . . . . Parts Melted . | . . . . . Heat Transferred 895 | 148 185 75 . 487 Parts Sabotaged . | . . . . . Parts Stolen . | . . . . . Parts Stripped . | . . . . . Power Chain Reactions . | . . . . . Missiles Intercepted . | . . . . . Alert | -11 -10 -10 -10 -9 ------- Run | Scr Mat Min Exi Min Peak Influence 150 | 20 142 40 . 150 Initial 25 | . 13 25 . . Average 60 | 5 68 33 . 82 Maximum Alert Level . | . . . . . Low Security (%) 100 | 100 100 100 . 100 Level 1 . | . . . . . Level 2 . | . . . . . Level 3 . | . . . . . Level 4 . | . . . . . Level 5 . | . . . . . High Security . | . . . . . Max Security . | . . . . . Squads Dispatched . | . . . . . Investigation . | . . . . . Extermination . | . . . . . Reinforcement . | . . . . . Assault . | . . . . . Garrison . | . . . . . Intercept . | . . . . . Construction Impeded . | . . . . . Haulers Reinforced . | . . . . . Stealth | -11 -10 -10 -10 -9 --------- Run | Scr Mat Min Exi Min Distress Signals . | . . . . . Communications Jammed . | . . . . . Distress Signals . | . . . . . Times Spotted 31 | 1 19 2 . 9 Peak Tracking Total 5 | 1 5 1 . 4 Tactical Retreats 2 | . 1 . . 1 Traps | -11 -10 -10 -10 -9 ------- Run | Scr Mat Min Exi Min Traps Triggered . | . . . . . Indirectly . | . . . . . Trap Hack Attempts . | . . . . . Triggered . | . . . . . Disarmed . | . . . . . Reprogrammed . | . . . . . Reused . | . . . . . Traps Extracted . | . . . . . Installed . | . . . . . Triggered . | . . . . . Machines | -11 -10 -10 -10 -9 ---------- Run | Scr Mat Min Exi Min Machines Disabled . | . . . . . Max in Single Turn . | . . . . . Machines Sabotaged . | . . . . . Garrisons Compromised . | . . . . . Overloaded Fab Kills . | . . . . . Fab Network Shutdowns . | . . . . . Hacking | -11 -10 -10 -10 -9 --------- Run | Scr Mat Min Exi Min Machines Accessed 4 | . 3 . 1 . Terminals 1 | . 1 . . . Fabricators . | . . . . . Repair Stations . | . . . . . Recycling Units 2 | . 2 . . . Scanalyzers . | . . . . . Garrison Access . | . . . . . Total Hacks 33 | . 10 . 23 . Successful 31 | . 8 . 23 . Failed 2 | . 2 . . . Catastrophic . | . . . . . Database Lockouts . | . . . . . Manual . | . . . . . Terminals 2 | . 2 . . . Fabricators . | . . . . . Repair Stations . | . . . . . Recycling Units 8 | . 8 . . . Scanalyzers . | . . . . . Garrison Access . | . . . . . Terminal Hacks 25 | . 2 . 23 . Record 24 | . 1 . 23 . Alert Level 1 | . 1 . . . Fabricator Hacks . | . . . . . Repair Station Hacks . | . . . . . Recycling Unit Hacks 6 | . 6 . . . Recycle Component 1 | . 1 . . . Process 2 | . 2 . . . Report Inventory 2 | . 2 . . . Retrieve Matter 1 | . 1 . . . Scanalyzer . | . . . . . Garrison Access Hacks . | . . . . . Unauthorized Hacks . | . . . . . Terminals . | . . . . . Fabricators . | . . . . . Repair Stations . | . . . . . Recycling Units . | . . . . . Scanalyzers . | . . . . . Garrison Access . | . . . . . Data Cores Recovered . | . . . . . Used . | . . . . . Hacking Detections 3 | . 3 . . . Full Trace Events 1 | . 1 . . . Feedback Events 1 | . 1 . . . Corruption 1 | . 1 . . . Feedback Blocked . | . . . . . Robot Schematics Acquired . | . . . . . Robots Built . | . . . . . Matter . | . . . . . Time . | . . . . . Total Robot Build Rating . | . . . . . Part Schematics Acquired . | . . . . . Parts Built . | . . . . . Matter . | . . . . . Time . | . . . . . Total Part Build Rating . | . . . . . Parts Repaired . | . . . . . Time . | . . . . . Parts Recycled 1 | . 1 . . . Recycled Matter 79 | . 79 . . . Retrieved Matter 65 | . 65 . . . Retrieved Components . | . . . . . Parts Scanalyzed . | . . . . . Part Schematics Acquired . | . . . . . Parts Damaged . | . . . . . Bothacking | -11 -10 -10 -10 -9 ------------ Run | Scr Mat Min Exi Min Used RIF Installer . | . . . . . Robots Hacked . | . . . . . Non-combat . | . . . . . Combat . | . . . . . Robot Hacks Applied . | . . . . . Relay Couplers Released . | . . . . . Robots Rewired . | . . . . . Allies Hacked . | . . . . . Hacks Repelled . | . . . . . Allies | -11 -10 -10 -10 -9 -------- Run | Scr Mat Min Exi Min Total Allies 3 | . . 3 . . Largest Group 3 | . . 3 2 . Highest-Rated Group 40 | . . 40 32 . Highest-Rated Ally 16 | . . 16 16 . Total Orders 3 | . . 3 . . GUARD 3 | . . 3 . . Ally Attacks 10 | . . 10 . . Total Damage 45 | . . 45 . . Kills 1 | . . 1 . . Allies Corrupted . | . . . . . Allies Melted . | . . . . . Intel | -11 -10 -10 -10 -9 ------- Run | Scr Mat Min Exi Min Robot Analysis Total . | . . . . . Derelict Logs Recovered . | . . . . . Drone Launches . | . . . . . Drone Recoveries . | . . . . . Exploration | -11 -10 -10 -10 -9 ------------- Run | Scr Mat Min Exi Min Turns Passed 2251 | 112 984 354 470 331 Spaces Moved 1818 | 88 710 317 461 242 Core 21 | 20 1 . . . Treads . | . . . . . Legs 420 | 44 376 . . . Wheels 1348 | 24 304 317 461 242 Hover . | . . . . . Flight 29 | . 29 . . . Fastest Speed 37 | 50 37 100 100 100 Average Speed 102 | 93 108 100 100 100 Slowest Speed 150 | 120 150 100 100 100 Overloaded Moves . | . . . . . Propulsion Burnouts . | . . . . . Robots Hopped 1 | . 1 . . . Cave-ins Triggered . | . . . . . Exploration Rate (%) 47 | 5 59 61 80 32 Regions Visited 4 Branch Regions 3 Pre-discovered Areas 1 | . . . 1 . Known Exits Taken . | . . . . . Unknown Exits Taken 4 | 1 1 1 1 . Scrap Searched 2 | . . . . 2 Spaces Dug . | . . . . . Terrain Destroyed 26 | . 26 . . . Melee . | . . . . . Projectile . | . . . . . AOE 26 | . 26 . . . Terrain Rammed . | . . . . . Walls Destroyed . | . . . . . Machines Disabled . | . . . . . Actions | -11 -10 -10 -10 -9 --------- Run | Scr Mat Min Exi Min Total 2093 | 110 875 342 469 297 Wait 67 | . 33 15 1 18 Move 1812 | 87 707 316 460 242 Hop 1 | . 1 . . . Pick Up 46 | 8 28 1 3 6 Fast Attach . | . . . . . Attach 27 | 5 17 1 1 3 Detach 8 | . 3 1 1 3 Swap 9 | 3 3 . . 3 Drop 32 | 3 22 1 2 4 Fire 83 | 4 53 7 1 18 Melee . | . . . . . Ram . | . . . . . Kick 8 | . 8 . . . Crush . | . . . . . Escape Stasis . | . . . . . Rewire . | . . . . . Trap . | . . . . . Miscellaneous . | . . . . . Route ------- -11/Scrapyard -10/Materials (discovered 4 exits: [*Mat x2] / [*Min x2]) -10/Mines -10/Exiles (discovered 2 exits: [*Min x2]) -9/Mines History --------- Turn | Location | Event 2 | -11/Scrapyard | Met Revision 17 67 | -11/Scrapyard | Discovered new exit (range 8) 113 | -11/Scrapyard | Entered Materials 304 | -10/Materials | Build established: Mutant 405 | -10/Materials | Discovered new exit (range 14) 584 | -10/Materials | Discovered new exit (range 11) 943 | -10/Materials | Core integrity fell below 50% 1009 | -10/Materials | Discovered new exit (range 15) 1027 | -10/Materials | Discovered new exit (range 16) 1097 | -10/Materials | Entered Mines 1136 | -10/Mines | Assisted by bots powering up and referring to "LRC-V3" 1169 | -10/Mines | Assembled infested the area 1444 | -10/Mines | Deemed a non-threat by the Exiles lab entrance 1445 | -10/Mines | Discovered new exit (range 5) 1451 | -10/Mines | Entered Exiles 1451 | -10/Exiles | Accompanied by 2 allies 1474 | -10/Exiles | Discovered new exit (range 17) 1484 | -10/Exiles | Met 8R-AWN 1506 | -10/Exiles | Met EX-HEX 1569 | -10/Exiles | Met EX-DEC 1593 | -10/Exiles | Learned location of Zion (-7) 1669 | -10/Exiles | Discovered new exit (range 15) 1751 | -10/Exiles | Visited The Gauntlet 1921 | -10/Exiles | Entered Mines 1951 | -9/Mines | Core integrity fell below 20% 2226 | -9/Mines | Excavation squad dispatched 2226 | -9/Mines | A large section of the Mines collapsed 2252 | -9/Mines | Destroyed by G-34 Mercenary with Small Laser Last Messages --------------- Acquired 24 matter. Acquired 6 matter. Once familiar with the basic mechanics, press ESC then '3' to read the in-game manual for more details. S-10 Pest destroyed. Searching scrap... Found Welding Torch. Found 25 Matter. Searching scrap... Found 41 Matter. Found Particle Cannon. Found Imp. Sensor Array. Found 32 Matter. Acquired Particle Cannon. Dropped Sml. Laser. Acquired 10 matter. ALERT: Suspicious cave-in, suspected derelict activity in mines. Dispatching escorted excavation squad. Press '.', 'keypad 5' or scroll the mouse wheel to wait a turn. [Achievement: First Step to Greatness] Map ----- +----------------------------------------------------+ | ????????????????????????? #??# # | | ?????????????????????????# #??# """ # | | ??????????###??????####??# #??# """ # | | ?????????? #??????# ##?# #??# """ | | ??????????# #??????# #?# #??# # | | ??????????# #?????## #?# #?########### | | ??????????# #????## #??# ### ##?????? | | ??????????# #???## ==#### ## #####?? | | ??????????# #??## *%%=* # ### | | ???????####%#### |%#### # | | ???????# [%! ##??# | | ????#### ######## ##??# ### | | ????# #??????#####???# ###?## # | | ????# ####??????????????## ##????## #### | | ???## ##?????????????????###??????# #### | | ??## ##?????????????????????????# | | ??# #???????????????????# #### | | ??# ##??????????????????# ??? | | ??## #####?????????????????## ?? | | ???## # ###??????????????????# ## ?? | | ????#### ###????????????????#??## ? | | ?????# ## # ######???????????????## ? | | ?????# ## #????????????????## # | | ?????## # ##### #?????????????????## # | | ??????## ##???# #???????????????????# # | | ???????####????#@#???????????????????? # | | ???????????????#g#???????????????????? # | | ???????????????# g???????????????????? # | | ???????????????###???????????????????? # | | ??????????????????????????????????????? | | ????????????????????????????????????????? | | ????????????????????????????????????????? | | ????????????????????????????????????????? | | ????????????????????????????????????????? | | ????????????????????????????????????????? | | ????????????????????????????????????????? | | ????????????????????????????????????????? | | ????????????????????????????????????????? | | ????????????????????????????????????????? | | ????????????????????????????????????????? | | ????????????????????????????????????????? | | ????????????????????????????????????????? | | ????????????????????????????????????????? | | ????????????????????????????????????????? | | ????????????????????????????????????????? | | ????????????????????????????????????????? | | ????????????????????????????????????????? | | ????????????????????????????????????????? | | ????????????????????????????????????????? | | ????????????????????????????????????????? | +----------------------------------------------------+ Best States ------------- Heat Dissipation 45 Energy Generation 10 Energy Capacity 250 Matter Stores 400 Matter Capacity 400 Sight Range 18 Terrain Scan Density 10 Armor Coverage 300 Propulsion Shielding 33 Evasion (%) 62 Item Schematics ----------------- None Robot Schematics ------------------ None Fabricated ------------ Nothing Alien Tech Used ----------------- None Achievements -------------- First Step to Greatness Fist Fight I Survived The Infestation Librarian Tourist Challenges ------------ None Game ------ Seed FlightArcRail Manual? 0 Play Time 00:51:37 Cumulative 1.6 hours Start 2020.12.03 @ 15:34:26 End 2020.12.03 @ 16:31:11 Sessions 1 Manual Loads 0 Difficulty Rogue Special Mode None Game No. 1 Rogue 1 Adventurer 0 Explorer 0 Win Type - Total 0 Types 0/0/0/0/0/0/0/0/0 Lore% 5 Gallery% 2 Achievement% 1 Wizard Run 0 Options --------- ASCII 0 Keyboard 0 Movement Numpad Keybinds 0 Fullscreen 2 Font 18/SmallcapsGlow Map View 76x50 Tactical HUD 0 Map Filters NONE Filters NONE Steam 1 RUN: 4623e6e9-8285-4a79-adc9-ed3c55e12626